bitfinex-derivatives/quotes_ETHF0:USTF0_20250224
["timestamp","ask_amount","ask_price","bid_price","bid_amount"]
[1740426368152,0.76003,2631.4,2631.3,4.629]
[1740426368353,2.90579077,2631.6,2631.3,4.625]
[1740426368556,2.90579077,2631.4,2631.2,0.0057019]
[1740426368760,7.53187362,2631.3,2631.2,1.9e-06]
[1740426369554,13.53187362,2631.3,2631.2,1.9e-06]
[1740426369756,0.76049,2629.8,2629.7,0.569]
[1740426369954,3.80082,2631.0,2629.7,5.184]
[1740426369955,0.76048,2629.9,2629.7,5.184]
[1740426370459,3.2078,2630.4,2629.8,4.611]
[1740426370654,0.76058,2629.5,2629.4,21.072]
[1740426370850,3.2078,2630.4,2628.9,3.7883]
[1740426370851,2.90578887,2629.6,2628.9,3.7883]
[1740426371158,3.66639887,2629.4,2629.3,4.606]
[1740426371359,4.62663285,2629.4,2629.3,4.606]
[1740426371653,6.77181172,2629.4,2629.0,0.0057019]
[1740426371863,0.5469,2630.3,2629.2,3.2078]
[1740426371864,3.2078,2629.8,2629.2,3.2078]
[1740426372053,2.90578887,2629.9,2629.5,3.2078]
[1740426372249,0.76052,2629.7,2629.6,4.596]
[1740426372865,0.7607,2629.1,2629.0,0.0057019]
[1740426373056,0.7607,2629.1,2629.0,4.5967019]
[1740426373254,3.66648887,2629.1,2629.0,0.0057019]
[1740426373558,7.53251172,2629.1,2629.0,1.9e-06]
[1740426374049,0.76104,2627.9,2627.8,4.584]
[1740426374253,2.90578697,2628.3,2627.8,4.581]
[1740426374547,0.76081,2628.7,2628.1,0.76097]
[1740426374751,2.90578697,2628.9,2628.5,3.2078]
[1740426374959,0.76079,2628.8,2628.6,4.581]
[1740426375148,3.66656697,2628.9,2628.6,4.581]
[1740426375553,0.0057019,2629.0,2628.6,4.581]
[1740426375753,0.0057019,2629.0,2628.8,3.2078]
[1740426376057,3.2078,2629.9,2628.9,21.084]
[1740426376255,3.86602285,2630.4,2629.8,3.2078]
[1740426376458,3.2078,2630.5,2629.9,4.578]
[1740426376665,0.0078,2630.5,2630.4,0.76032]
[1740426376858,0.5729,2631.6,2630.4,7.7868]
[1740426377054,2.90578697,2630.7,2630.5,3.2078]
[1740426377359,0.76026,2630.6,2630.5,3.2078]
[1740426377558,2.90578697,2630.6,2630.2,24.2918]
[1740426377755,2.90578697,2630.6,2630.3,4.5767019]
[1740426377957,0.76029,2630.5,2630.3,4.5767019]
[1740426378155,0.7657819,2631.3,2630.3,4.5767019]
[1740426378456,0.0057019,2631.3,2631.0,3.2078]
[1740426378650,0.0057019,2631.3,2631.1,4.561]
[1740426378851,3.66587697,2631.2,2631.1,4.561]
[1740426379065,2.90578697,2631.2,2631.0,3.2078]
[1740426379255,6.77180982,2631.1,2630.6,4.562]
[1740426379457,0.0057019,2631.3,2630.8,3.2078]
[1740426379655,2.91148887,2631.3,2631.1,3.2078]
[1740426379859,0.76009,2631.2,2631.1,3.2078]
[1740426380057,0.0057019,2631.3,2631.2,5.32809]
[1740426380263,2.91148887,2631.3,2631.1,8.24364922]
[1740426380465,0.0057019,2631.3,2631.2,4.568]
[1740426380657,0.7657619,2631.3,2631.2,4.568]
[1740426380853,0.0057019,2631.3,2631.2,4.568]
[1740426381053,3.67154887,2631.3,2631.2,4.568]
[1740426381258,0.7602,2630.8,2630.7,3.2078]
[1740426381468,2.90578697,2630.9,2630.7,7.7718]
[1740426381659,0.7602,2630.8,2630.7,7.7718]
[1740426381857,0.7602,2630.8,2629.9,0.5554]
[1740426381858,0.76029,2630.5,2630.4,3.2078]
[1740426382061,0.76032,2630.4,2630.2,21.084]
[1740426382260,0.76032,2630.4,2628.9,1.90187]
[1740426382261,10.73992982,2630.4,2630.3,1.9e-06]
[1740426383069,0.76058,2629.5,2629.4,4.563]
[1740426383258,2.90578507,2629.7,2629.4,5.3236]
[1740426383459,0.5601,2630.7,2629.6,3.2078]
[1740426383760,0.5601,2630.7,2630.1,3.2078]
[1740426383761,2.90578507,2630.3,2630.1,3.2078]
[1740426383965,0.76038,2630.2,2630.1,3.2078]
[1740426384153,4.55,2631.5,2630.1,13.7588]
[1740426384355,0.76038,2630.2,2630.1,4.551]
[1740426384563,3.66616507,2630.2,2630.1,4.551]
[1740426384865,0.76044,2630.0,2629.9,0.0057019]
[1740426385067,2.90578507,2630.1,2629.9,4.5507019]
[1740426385364,2.90578507,2630.4,2630.0,3.2078]
[1740426385864,3.86602285,2630.4,2630.0,3.2078]
[1740426386161,2.90578507,2630.2,2630.0,3.2078]
[1740426386461,0.76044,2630.0,2629.9,0.0057019]
[1740426386657,7.53224792,2630.0,2629.9,0.0057019]
[1740426387061,13.53224792,2630.0,2629.9,1.9e-06]
[1740426387265,0.76064,2629.3,2629.2,4.533]
[1740426387457,3.86602285,2629.7,2629.1,3.2078]
[1740426387659,2.90578507,2629.5,2629.2,4.541]
[1740426387959,0.76058,2629.5,2629.4,3.2078]
[1740426388262,3.2078,2630.1,2629.4,3.2078]
[1740426388562,2.90578507,2629.6,2629.2,4.5467019]
[1740426388767,3.66633507,2629.6,2629.5,3.2078]
[1740426388972,2.90578507,2629.6,2629.5,3.2078]
[1740426389162,8.67323792,2629.6,2629.2,0.0057019]
[1740426389465,0.76064,2629.3,2629.2,7.7395019]
[1740426389658,2.90578507,2629.6,2629.4,0.76061]
[1740426389853,3.66633507,2629.6,2629.5,3.2078]
[1740426390056,2.90578507,2629.5,2629.2,48.5395019]
[1740426390460,2.90578507,2629.5,2629.2,44.0135019]
[1740426390767,3.66642507,2629.3,2629.2,44.0135019]
[1740426390961,7.53244792,2629.3,2629.2,1.9e-06]
[1740426391467,1.90177,2629.1,2627.9,3.21729158]
[1740426391667,3.66674317,2628.2,2628.1,4.509]
[1740426391964,3.86602285,2628.3,2628.2,0.76096]
[1740426391965,2.90578317,2628.3,2628.2,0.76096]
[1740426392164,2.4492,2629.2,2628.2,0.76096]
[1740426392165,0.5475,2629.2,2628.2,7.7168]
[1740426392367,0.5475,2629.2,2628.5,3.2078]
[1740426392667,3.66667317,2628.5,2628.2,3.2078]
[1740426392861,2.90578317,2628.9,2628.6,0.0057019]
[1740426393061,0.76075,2628.9,2628.8,3.2078]
[1740426393270,0.76075,2628.9,2628.8,7.7138]
[1740426393467,0.0057019,2629.1,2628.8,7.7138]
[1740426393765,0.0057019,2629.1,2629.0,0.76073]
[1740426393962,0.0057019,2629.1,2628.8,7.7138]
[1740426394166,0.0057019,2629.1,2629.0,0.76073]
[1740426394363,1.90096,2630.2,2629.0,6.0]
[1740426394565,3.80143,2630.6,2629.2,3.2078]
[1740426394566,0.76064,2629.3,2629.2,3.2078]
[1740426394769,6.77180602,2628.9,2628.7,21.09]
[1740426394965,6.77180602,2628.8,2628.6,3.2135019]
[1740426395166,7.53261602,2628.7,2628.6,0.0057019]
[1740426396270,0.0057019,2628.9,2628.6,4.4957019]
[1740426396462,0.76081,2628.7,2628.6,4.4957019]
[1740426396661,0.0057019,2628.9,2628.6,4.4957019]
[1740426396866,0.7664519,2628.9,2628.8,3.2078]
[1740426397166,0.0057019,2628.9,2628.8,3.96858]
[1740426397369,2.91148507,2628.9,2628.6,5.2565319]
[1740426397667,0.0057019,2628.9,2628.8,3.96858]
[1740426397868,0.76064,2629.3,2628.8,3.2078]
[1740426398167,3.2078,2630.1,2628.8,3.2078]
[1740426398168,2.90578317,2629.6,2629.1,3.2078]
[1740426398363,2.90578317,2629.9,2629.5,3.2078]
[1740426398573,2.90578317,2629.9,2629.8,3.2078]
[1740426398870,1.90066,2630.6,2629.8,48.4988]
[1740426399067,0.0057019,2630.1,2629.8,45.291]
[1740426399371,0.0057019,2630.1,2630.0,3.96824]
[1740426399669,0.7661119,2630.1,2630.0,3.2078]
[1740426399864,0.76049,2629.8,2629.7,3.2135019]
[1740426400069,7.53229602,2629.8,2629.7,3.2135019]
[1740426400470,2.90578317,2629.8,2629.7,3.2135019]
[1740426400670,7.53229602,2629.8,2629.7,0.0057019]
[1740426400965,0.0057019,2630.1,2629.7,0.0057019]
[1740426401165,7.53229602,2629.8,2629.7,0.0057019]
[1740426401568,7.53229602,2629.8,2629.7,1.9e-06]
[1740426402070,7.53229602,2629.8,2628.1,0.7959]
[1740426402071,6.0,2629.8,2628.6,7.7038]
[1740426402274,2.90578127,2628.9,2628.6,7.7038]
[1740426402565,2.90578127,2628.8,2628.6,7.7038]
[1740426402768,7.53261412,2628.7,2628.6,3.2078]
[1740426403763,6.78318137,2628.7,2628.6,3.2078]
[1740426403960,7.54399137,2628.7,2628.6,3.2078]
[1740426405077,0.76087,2628.5,2628.4,4.4777019]
[1740426405373,7.53267412,2628.5,2628.4,4.4777019]
[1740426405574,2.90578127,2628.5,2628.4,7.6855019]
[1740426405767,3.66665127,2628.5,2628.4,7.6855019]
[1740426405969,2.91715852,2628.5,2628.4,7.6855019]
[1740426406271,3.67802852,2628.5,2628.4,7.6855019]
[1740426406678,7.54405137,2628.5,2628.4,4.4777019]
[1740426407067,3.2078,2630.6,2628.4,13.6855019]
[1740426407268,14.26122856,2631.0,2629.2,3.2078]
[1740426407269,0.76059,2629.5,2629.2,3.2078]
[1740426407463,0.8193,2630.5,2628.4,9.46642459]
[1740426407464,0.76061,2629.4,2629.3,4.553]
[1740426407669,0.76061,2629.4,2629.3,38.253]
[1740426407963,0.76073,2629.0,2628.9,4.549]
[1740426408164,3.2078,2629.7,2628.9,4.549]
[1740426408375,4.545,2630.2,2628.9,4.549]
[1740426408376,0.0057019,2629.2,2629.1,0.7607]
[1740426408670,0.0057019,2629.2,2629.1,3.9685]
[1740426408868,0.0057019,2629.2,2629.1,36.9078]
[1740426409069,0.0057019,2629.2,2629.1,3.9685]
[1740426409377,2.72006,2630.5,2629.7,0.76051]
[1740426409674,1.90081,2630.4,2629.8,3.2078]
[1740426409976,5.92788,2630.5,2629.8,3.96827]
[1740426410169,0.76042,2630.1,2629.8,0.76049]
[1740426410476,0.7661019,2630.2,2629.8,3.2078]
[1740426410672,0.0057019,2630.2,2629.8,3.2078]
[1740426410871,3.2135019,2630.2,2629.5,3.2078]
[1740426411169,0.76061,2629.4,2629.3,4.524]
[1740426411478,0.76064,2629.3,2629.2,3.2078]
[1740426411675,0.76064,2629.3,2628.7,0.0057019]
[1740426411676,3.2078,2629.3,2628.7,7.7315019]
[1740426411972,3.2078,2629.3,2628.7,8.4923019]
[1740426412175,1.90168,2629.2,2628.7,7.7315019]
[1740426412377,0.76075,2629.0,2628.7,7.7315019]
[1740426412579,0.76075,2629.0,2628.8,4.505]
[1740426412773,3.2078,2629.3,2628.7,0.0057019]
[1740426412968,3.2078,2629.0,2628.7,0.0057019]
[1740426413271,0.76078,2628.8,2628.7,0.0057019]
[1740426413978,0.76078,2628.8,2628.7,1.9e-06]
[1740426414371,6.76078,2628.8,2628.7,1.9e-06]
[1740426415070,0.76078,2628.8,2628.7,1.9e-06]
[1740426415772,0.76077,2628.9,2628.7,0.7608019]
[1740426415969,0.76078,2628.8,2628.7,1.9e-06]
[1740426416176,3.2078,2629.4,2628.7,1.9e-06]
[1740426416366,0.76078,2628.8,2628.7,1.9e-06]
[1740426416572,1.9016,2629.3,2628.7,1.9e-06]
[1740426417072,0.76078,2628.8,2628.7,1.9e-06]
[1740426418270,3.2078,2629.3,2628.7,7.6678019]
[1740426418577,1.90126,2629.8,2628.9,3.2078]
[1740426418878,3.2078,2630.0,2629.2,3.2078]
[1740426419080,0.76064,2629.4,2629.3,4.457]
[1740426419274,1.90124,2629.8,2628.7,1.9e-06]
[1740426419275,3.2078,2630.0,2628.7,1.9e-06]
[1740426419479,0.76078,2628.8,2628.7,4.4820019]
[1740426419872,0.76078,2628.8,2628.7,38.1820019]
[1740426420072,0.76078,2628.8,2628.7,1.9e-06]
[1740426420272,9.2078,2628.8,2627.9,0.00949158]
[1740426420476,4.472,2629.1,2627.9,0.00949158]
[1740426420477,1.90204,2628.7,2627.9,0.00949158]
[1740426420678,0.76101,2628.0,2627.9,0.00949158]
[1740426420874,1.90197,2628.8,2627.9,3.21729158]
[1740426421078,0.7863,2629.0,2628.4,3.2078]
[1740426421272,0.76101,2628.0,2627.9,3.21729158]
[1740426421475,1.90204,2628.7,2627.9,7.70029158]
[1740426421785,0.0057019,2629.0,2628.5,3.2078]
[1740426422078,0.0057019,2629.0,2628.9,0.76075]
[1740426422280,0.76053,2629.7,2628.9,1.90188]
[1740426422477,1.90086,2630.4,2629.6,3.2078]
[1740426422679,4.75441,2630.5,2630.0,0.76041]
[1740426422883,1.9002,2631.3,2630.3,3.2078]
[1740426423079,0.8083,2631.5,2630.7,3.2078]
[1740426423274,0.76014,2631.1,2631.0,3.2078]
[1740426423474,0.76011,2631.2,2631.0,7.6918]
[1740426423674,0.0057019,2631.3,2631.0,7.6918]
[1740426423874,14.26122856,2631.2,2631.0,7.6918]
[1740426424075,14.26122856,2631.2,2631.1,0.76012]
[1740426424582,14.26122856,2631.2,2631.1,6.76012]
[1740426424882,14.26122856,2631.2,2631.0,3.2078]
[1740426425181,14.26122856,2631.2,2631.1,5.24912]
[1740426425382,13.47003856,2631.2,2631.1,11.24912]
[1740426425687,13.47003856,2631.2,2631.1,38.0676485]
[1740426425688,11.40575856,2631.2,2631.1,38.0676485]
[1740426425886,2.35345856,2631.2,2631.1,38.0676485]
[1740426426189,3.2078,2633.3,2631.1,37.3075285]
[1740426426385,3.8008,2633.0,2632.5,3.2078]
[1740426426582,0.75952,2633.2,2632.8,3.2078]
[1740426426783,3.8008,2633.1,2632.6,4.483]
[1740426426983,3.8008,2633.2,2633.0,3.2078]
[1740426427290,0.75957,2633.0,2632.9,4.477]
[1740426427484,0.0057019,2633.4,2632.9,7.6848]
[1740426427690,0.0057019,2633.4,2633.2,3.2078]
[1740426427893,0.0057019,2633.4,2633.2,3.9673]
[1740426428091,0.8058,2634.3,2633.2,9.2078]
[1740426428401,3.8008,2634.2,2634.0,3.2078]
[1740426428687,3.8008,2634.2,2634.1,4.475]
[1740426428688,4.56002,2634.2,2634.1,4.475]
[1740426429088,0.75925,2634.1,2634.0,3.2078]
[1740426429295,0.75925,2634.1,2634.0,7.6728]
[1740426429691,5.10535,2635.0,2634.0,7.6728]
[1740426429997,0.75925,2634.1,2634.0,7.6728]
[1740426430684,3.8008,2634.1,2633.8,0.0057019]
[1740426430886,4.56011,2633.9,2633.8,0.0057019]
[1740426431087,0.75931,2633.9,2633.8,7.6535019]
[1740426431391,1.89766,2634.8,2633.8,7.6535019]
[1740426431392,1.89736,2635.2,2633.8,13.6535019]
[1740426431593,3.8008,2634.8,2633.8,9.41049332]
[1740426431789,2.5393,2635.4,2634.7,3.2078]
[1740426431790,4.55975,2635.2,2634.7,3.2078]
[1740426431989,0.75894,2635.2,2635.1,3.2078]
[1740426432196,0.75894,2635.2,2635.1,7.6438]
[1740426432397,0.75894,2635.2,2635.1,41.3438]
[1740426432596,0.75894,2635.2,2635.1,38.136]
[1740426432792,0.75894,2635.2,2635.1,7.6438]
[1740426432993,3.8008,2635.2,2634.4,3.2078]
[1740426433198,3.8008,2635.0,2634.7,3.2078]
[1740426433392,3.8008,2634.9,2634.8,7.6328]
[1740426433696,4.55982,2634.9,2634.8,7.6328]
[1740426433896,1.89764,2634.8,2634.1,3.2078]
[1740426434095,0.75922,2634.2,2634.1,3.2078]
[1740426434402,3.2078,2635.5,2634.1,7.6298]
[1740426434599,3.8008,2634.9,2634.1,9.31584894]
[1740426434799,3.8008,2634.9,2634.7,3.2078]
[1740426435006,0.75905,2634.8,2634.7,3.2078]
[1740426435194,4.55985,2634.8,2634.7,3.2078]
[1740426435397,0.75911,2634.6,2634.5,7.6188]
[1740426435596,0.75911,2634.6,2634.5,7.6218]
[1740426436301,0.75914,2634.5,2634.4,4.408]
[1740426436502,4.55994,2634.5,2634.4,7.6158]
[1740426436698,5.10516,2635.2,2634.4,7.6158]
[1740426437004,0.75912,2634.6,2634.5,4.403]
[1740426437191,0.75901,2635.0,2634.5,5.16212]
[1740426437396,0.75891,2635.3,2634.8,0.75904]
[1740426437596,4.0364,2636.6,2635.2,3.2078]
[1740426437797,4.55962,2635.6,2635.3,4.396]
[1740426437998,2.77142,2636.3,2635.3,4.396]
[1740426437999,3.8008,2636.0,2635.5,3.2078]
[1740426438200,3.8008,2636.0,2635.9,3.2078]
[1740426438406,3.8008,2635.9,2635.2,0.00569098]
[1740426438596,0.75873,2635.9,2635.8,3.2078]
[1740426438802,4.55965,2635.5,2635.4,3.2078]
[1740426439104,4.55971,2635.3,2635.2,0.00569098]
[1740426439595,1.89664,2636.2,2635.2,6.00569098]
[1740426439796,0.75882,2635.6,2635.5,3.2078]
[1740426439997,0.75882,2635.6,2635.5,7.5938]
[1740426440406,3.2078,2636.5,2635.5,7.5938]
[1740426440600,0.75865,2636.2,2636.1,3.2078]
[1740426441005,4.55945,2636.2,2636.1,3.2078]
[1740426441505,0.75865,2636.2,2636.1,3.2078]
[1740426441900,0.75868,2636.1,2636.0,4.38]
[1740426442095,0.8286,2636.6,2636.0,7.5878]
[1740426442297,3.8008,2636.6,2636.3,3.2078]
[1740426442597,0.75859,2636.4,2636.3,3.2078]
[1740426442802,4.55939,2636.4,2636.3,7.5768]
[1740426443001,0.75857,2636.5,2636.3,7.5768]
[1740426443206,3.8008,2636.7,2636.3,7.5768]
[1740426443508,0.75859,2636.4,2636.3,4.369]
[1740426444603,4.55939,2636.4,2636.3,4.369]
[1740426445412,0.75859,2636.4,2636.3,4.369]
[1740426445812,4.55939,2636.4,2636.3,4.369]
[1740426446005,1.89594,2637.2,2636.3,4.369]
[1740426446205,0.75859,2636.4,2636.3,4.369]
[1740426446404,0.75858,2636.5,2636.3,4.369]
[1740426446705,0.846,2637.5,2636.3,4.369]
[1740426446912,4.55915,2637.3,2636.9,0.75843]
[1740426447104,4.55915,2637.3,2637.2,3.2078]
[1740426447509,3.8008,2637.3,2637.2,3.2078]
[1740426447809,2.68355,2637.9,2637.2,3.2078]
[1740426447999,4.55902,2637.7,2637.6,3.2078]
[1740426448203,4.55902,2637.7,2637.6,7.5498]
[1740426448402,0.75822,2637.7,2637.6,7.5498]
[1740426448807,0.8102,2638.5,2637.6,7.5498]
[1740426449003,4.55898,2637.9,2637.6,7.5498]
[1740426449212,3.8008,2637.9,2637.6,7.5498]
[1740426449412,0.75822,2637.7,2637.6,7.5498]
[1740426450407,4.55902,2637.7,2637.6,7.5498]
[1740426450709,1.89584,2637.3,2636.2,3.2078]
[1740426451014,3.8008,2636.9,2636.5,3.2078]
[1740426451223,3.8008,2636.9,2636.6,5.06452]
[1740426451516,3.2078,2637.7,2636.8,3.2078]
[1740426451703,0.75841,2637.1,2636.8,3.2078]
[1740426451905,3.8008,2636.9,2636.3,3.2078]
[1740426452106,3.8008,2636.5,2636.4,4.302]
[1740426452507,4.55936,2636.5,2636.4,4.302]
[1740426452709,3.2078,2637.3,2636.4,13.5098]
[1740426452906,3.2078,2637.3,2637.0,0.75841]
[1740426453102,3.2078,2637.3,2637.1,4.322]
[1740426453311,0.75836,2637.2,2637.1,4.322]
[1740426453508,0.75856,2636.6,2636.3,3.21349098]
[1740426453708,5.10367,2637.3,2636.3,3.21349098]
[1740426453918,4.55926,2636.9,2636.5,0.75854]
[1740426454117,4.55926,2636.9,2636.8,0.75847]
[1740426454118,3.8008,2636.9,2636.8,0.75847]
[1740426454311,3.8008,2636.9,2636.6,3.2078]
[1740426454512,0.75838,2637.2,2636.8,0.75847]
[1740426454811,0.00565809,2637.5,2636.9,12.40641224]
[1740426455111,3.80645809,2637.5,2636.9,12.40641224]
[1740426455315,3.80645809,2637.5,2637.1,0.75839]
[1740426455316,0.7583,2637.4,2637.1,0.75839]
[1740426455512,3.80645809,2637.5,2637.2,0.75834]
[1740426455712,3.8008,2637.4,2636.9,7.5258]
[1740426455917,0.00565809,2637.5,2637.2,3.2078]
[1740426456114,0.00565809,2637.5,2637.2,3.96615]
[1740426456612,0.00565809,2637.5,2637.3,33.7]
[1740426456815,0.00565809,2637.5,2637.4,5.0883]
[1740426457208,3.80645809,2637.5,2637.2,3.2078]
[1740426457409,0.7583,2637.4,2637.0,3.2078]
[1740426457618,3.8008,2637.1,2636.6,3.2078]
[1740426457820,3.8008,2637.1,2637.0,0.75842]
[1740426458212,0.75845,2636.9,2636.8,33.7]
[1740426458408,3.8008,2637.0,2636.8,5.08545]
[1740426458611,0.75845,2636.9,2636.8,4.327]
[1740426458807,3.8008,2636.9,2636.8,4.327]
[1740426459113,3.8008,2636.9,2636.8,38.027]
[1740426459311,3.8008,2636.9,2636.8,5.08547]
[1740426459507,2.86466,2636.9,2636.8,10.76547]
[1740426459707,0.00565809,2637.5,2637.4,0.7583]
[1740426459913,0.00565809,2637.5,2637.4,8.3111]
[1740426460109,0.00565809,2637.5,2637.4,14.3111]
[1740426461118,0.00565809,2637.5,2637.4,48.0111]
[1740426461307,0.8789,2638.5,2637.4,52.21123442]
[1740426461512,3.62278,2638.1,2637.8,3.2078]
[1740426461815,2.86466,2638.0,2637.9,5.08716]
[1740426462020,2.86466,2638.1,2637.9,4.329]
[1740426462222,0.75813,2638.0,2637.9,4.329]
[1740426462719,3.62279,2638.0,2637.9,4.314]
[1740426463120,2.86466,2638.0,2637.9,4.314]
[1740426463323,3.62279,2638.0,2637.9,4.314]
[1740426463618,0.8789,2638.5,2637.9,4.314]
[1740426463824,0.75805,2638.3,2638.1,3.2078]
[1740426464118,3.62271,2638.3,2638.1,3.2078]
[1740426464317,2.86466,2638.3,2638.1,3.2078]
[1740426464517,0.8094,2639.0,2638.1,9.2078]
[1740426464816,2.86466,2638.8,2638.4,3.2078]
[1740426465117,0.75796,2638.6,2638.5,4.314]
[1740426465716,0.75793,2638.7,2638.5,4.314]
[1740426465926,2.86466,2638.8,2638.5,4.314]
[1740426466121,0.75794,2638.7,2638.5,4.314]
[1740426466517,0.75793,2638.7,2638.6,33.7]
[1740426466925,0.75796,2638.6,2638.5,4.314]
[1740426467118,0.75799,2638.5,2638.4,3.2078]
[1740426467319,3.62265,2638.5,2638.4,7.4918]
[1740426467720,2.86466,2638.5,2638.4,7.4918]
[1740426467927,3.62265,2638.5,2638.4,7.4918]
[1740426468123,2.86466,2638.5,2638.4,7.4918]
[1740426468328,3.62265,2638.5,2638.4,7.4918]
[1740426468726,3.62265,2638.5,2638.4,4.284]
[1740426469731,6.07246,2638.5,2638.0,24.2358]
[1740426469930,2.86466,2638.3,2638.1,4.26]
[1740426470426,2.86466,2638.3,2638.1,5.01808]
[1740426470927,0.75806,2638.3,2638.2,4.252]
[1740426471133,3.62272,2638.3,2638.2,4.252]
[1740426471626,0.75816,2637.9,2637.8,4.246]
[1740426472127,3.2078,2638.6,2637.8,4.246]
[1740426472429,3.62275,2638.2,2637.9,0.75815]
[1740426472630,3.62275,2638.2,2637.9,0.75814]
[1740426472826,3.2078,2638.6,2637.8,4.246]
[1740426473026,2.86466,2637.9,2637.8,4.246]
[1740426473236,0.75819,2637.8,2637.7,0.00569098]
[1740426473533,0.75844,2637.0,2636.8,4.251]
[1740426473729,2.86466,2637.0,2636.6,3.2078]
[1740426474032,6.07246,2636.7,2636.4,4.257]
[1740426474222,3.2078,2636.7,2636.4,4.257]
[1740426474421,0.75862,2636.3,2636.2,3.2078]
[1740426474624,3.62328,2636.3,2636.2,7.4618]
[1740426474823,0.75865,2636.2,2636.1,21.022]
[1740426475023,2.86466,2636.2,2636.1,25.273]
[1740426475238,3.2078,2636.6,2636.1,25.273]
[1740426475532,0.00569098,2636.8,2636.3,3.2078]
[1740426475733,2.86466,2636.7,2636.3,3.2078]
[1740426476027,2.86466,2636.7,2636.4,8.22138]
[1740426476225,0.00569098,2636.8,2636.6,0.75853]
[1740426476421,0.00569098,2636.8,2636.6,0.75852]
[1740426476931,0.00569098,2636.8,2636.7,3.2078]
[1740426477725,0.00569098,2636.8,2636.3,3.2078]
[1740426478029,0.76416098,2636.8,2636.7,4.83243479]
[1740426478235,3.62318,2636.7,2636.4,7.4428]
[1740426478433,0.75856,2636.5,2636.4,3.2078]
[1740426478629,2.86466,2636.7,2636.4,7.4418]
[1740426478830,2.86466,2636.7,2636.5,33.7]
[1740426479338,0.00569098,2636.8,2636.5,33.7]
[1740426479537,0.00569098,2636.8,2636.7,3.9663]
[1740426480128,0.00569098,2636.8,2636.1,24.2298]
[1740426480129,2.87035098,2636.8,2636.1,24.2298]
[1740426480329,0.00569098,2636.8,2636.7,3.2078]
[1740426480535,0.8836,2637.8,2636.7,3.2078]
[1740426480833,2.86466,2637.6,2637.4,3.2078]
[1740426481032,2.86466,2637.6,2637.5,4.223]
[1740426481738,3.2078,2638.3,2637.7,0.7582]
[1740426481935,1.89519,2638.2,2637.8,3.2078]
[1740426482133,2.86466,2638.0,2637.8,3.2078]
[1740426482334,2.86466,2638.3,2638.0,0.75812]
[1740426482539,2.86466,2638.3,2638.2,3.2078]
[1740426482740,0.75789,2638.9,2638.4,0.75799]
[1740426482931,2.86466,2638.6,2638.5,7.6058]
[1740426483135,2.86466,2638.1,2638.0,3.2078]
[1740426483335,2.86466,2638.1,2638.0,7.6048]
[1740426483841,2.86466,2638.1,2638.0,4.397]
[1740426484033,0.75819,2637.8,2637.7,21.027]
[1740426484233,2.86466,2637.8,2637.7,25.416]
[1740426484433,3.62285,2637.8,2637.7,25.416]
[1740426484638,2.86466,2637.8,2637.7,25.416]
[1740426485337,0.75812,2638.1,2637.7,25.416]
[1740426485537,2.86466,2638.0,2637.7,25.416]
[1740426485739,3.62285,2637.8,2637.7,25.416]
[1740426485935,2.86466,2637.8,2637.3,3.21349098]
[1740426486134,3.62296,2637.4,2637.3,0.00569098]
[1740426487035,8.86466,2637.4,2637.2,4.374]
[1740426487235,0.75853,2636.6,2636.5,21.024]
[1740426487539,6.07246,2636.6,2635.8,3.2078]
[1740426487742,2.86466,2636.0,2635.9,4.367]
[1740426487936,2.86466,2636.0,2635.7,21.024]
[1740426488141,3.62342,2635.8,2635.7,21.024]
[1740426488334,2.86466,2635.8,2635.7,28.5948]
[1740426488846,0.00569098,2636.1,2635.7,68.2948]
[1740426489036,0.00569098,2636.1,2636.0,3.96651]
[1740426489339,0.9902,2637.4,2636.1,1.89668]
[1740426489535,0.75845,2636.9,2636.8,3.2078]
[1740426489733,2.86466,2637.0,2636.8,42.02027]
[1740426489929,2.86466,2637.0,2636.8,41.2618]
[1740426490330,3.62311,2636.9,2636.8,38.054]
[1740426491236,3.62311,2636.9,2636.8,41.2618]
[1740426491436,0.75863,2636.3,2636.0,3.2078]
[1740426491643,0.75865,2636.2,2636.1,4.339]
[1740426491937,0.75865,2636.2,2636.1,7.5468]
[1740426491938,2.86466,2636.2,2636.1,7.5468]
[1740426492137,0.75842,2637.0,2636.1,3.2078]
[1740426492347,2.86466,2636.8,2636.4,3.2078]
[1740426492640,2.86466,2637.0,2636.7,3.2078]
[1740426492942,2.86466,2637.4,2637.3,0.75833]
[1740426493139,3.2078,2638.2,2637.3,4.35]
[1740426493140,0.75828,2637.5,2637.3,4.35]
[1740426493335,2.86466,2637.5,2637.4,36.9078]
[1740426493533,3.62293,2637.5,2637.4,33.7]
[1740426493737,2.86466,2637.5,2637.3,4.35]
[1740426493934,3.62296,2637.4,2637.3,4.35]
[1740426494538,0.75836,2637.2,2637.1,0.00569098]
[1740426494740,6.83082,2637.2,2637.1,0.00569098]
[1740426494945,0.75859,2636.4,2636.3,3.2078]
[1740426495246,2.86466,2636.4,2636.1,25.371]
[1740426495446,3.62331,2636.2,2636.1,25.371]
[1740426496143,2.86466,2636.2,2636.1,25.371]
[1740426496344,2.86466,2636.2,2636.1,28.5788]
[1740426496740,0.00569098,2636.4,2636.1,28.5788]
[1740426496940,0.00569098,2636.4,2636.3,0.75862]
[1740426497248,3.62331,2636.2,2636.1,24.2348]
[1740426497540,3.62331,2636.2,2636.1,28.5628]
[1740426498248,2.86466,2636.2,2636.1,28.5628]
[1740426498434,3.62331,2636.2,2636.1,28.5628]
[1740426498945,3.62331,2636.2,2636.1,62.2628]
[1740426499146,3.62331,2636.2,2636.1,59.055]
[1740426499338,3.62331,2636.2,2636.1,54.727]
[1740426499540,3.62331,2636.2,2636.1,25.339]